fUST/lending_fUST_20250914
["ID","MTS","AMOUNT","RATE_DAILY","PERIOD"]
[385436601,1757848401463,2606.28726747,0.000199,2]
[385436602,1757848412176,484.27,0.00020975,10]
[385436603,1757848423417,856.1456662,0.00020694,2]
[385436604,1757848428656,-200000.0,0.00020985,2]
[385436605,1757848445468,-300.0,0.00020984,2]
[385436607,1757848455509,-5006.9989366,0.00020985,2]
[385436610,1757848485485,-10000.01,0.00020985,2]
[385436611,1757848485606,-1279.28526733,0.00020985,2]
[385436612,1757848485637,-1094.85,0.00021084,2]
[385436613,1757848485667,-1094.85,0.00021084,2]
[385436614,1757848485697,-1094.85,0.00021084,2]
[385436615,1757848485777,-872.33946534,0.00021084,2]
[385436616,1757848505550,-300.0,0.00021083,2]
[385436617,1757848505583,-222.51053466,0.00021084,2]
[385436618,1757848505614,-1094.85,0.00021084,2]
[385436619,1757848505644,-1094.85,0.00021084,2]
[385436620,1757848505672,-1094.85,0.00021084,2]
[385436621,1757848505699,-1094.85,0.00021084,2]
[385436622,1757848505838,-196.18893068,0.00021084,2]
[385436623,1757848515592,-898.66106932,0.00021084,2]
[385436624,1757848515622,-1094.85,0.00021084,2]
[385436625,1757848515651,-1094.85,0.00021084,2]
[385436626,1757848515679,-1094.85,0.00021084,2]
[385436627,1757848515706,-538.73786136,0.00021084,2]
[385436628,1757848515792,-556.11213864,0.00021084,2]
[385436629,1757848515820,-1094.85,0.00021084,2]
[385436630,1757848515849,-168.0,0.00021117,2]
[385436631,1757848515879,-2606.28726718,0.00021149,2]
[385436632,1757848515988,-556.11213864,0.00021188,2]
[385436633,1757848516005,-1149.51118836,0.00021188,2]
[385436635,1757848524155,-1448.0990385,0.00021188,2]
[385436636,1757848524201,-7103.811923,0.00021188,2]
[385436637,1757848524260,-10000.01,0.00021188,2]
[385436638,1757848535592,-1474.95278124,0.00020976,2]
[385436639,1757848535626,-7050.10443752,0.00021188,2]
[385436640,1757848545621,-522.66487445,0.00020976,2]
[385436641,1757848545650,-2457.52,0.00021,2]
[385436642,1757848545695,-4039.6402511,0.00021188,2]
[385436643,1757848574916,500.98293698,0.00030237,120]
[385436644,1757848615803,-2621.23240329,0.000199,2]
[385436645,1757848615831,-218.78111207,0.00021083,2]
[385436646,1757848615861,-480.0,0.00021084,7]
[385436647,1757848615893,-738.75056624,0.00021149,2]
[385436648,1757848615979,-1882.4818368,0.00021149,2]
[385436651,1757848632636,-4537.66594228,0.00021188,2]
[385436652,1757848632661,-160.0,0.00021326,2]
[385436653,1757848632685,-300.0,0.00021403,2]
[385436654,1757848632708,-300.0,0.00021404,20]
[385436655,1757848632732,-300.0,0.00021404,20]
[385436656,1757848632757,-300.0,0.00021404,20]
[385436657,1757848632782,-300.0,0.00021404,20]
[385436658,1757848632806,-300.0,0.00021404,20]
[385436659,1757848632831,-300.0,0.00021404,20]
[385436660,1757848632854,-300.0,0.00021404,20]
[385436661,1757848632879,-300.0,0.00021404,20]
[385436662,1757848633063,-300.0,0.00021404,20]
[385436663,1757848633089,-300.0,0.00021404,20]
[385436664,1757848633114,-300.0,0.00021404,20]
[385436665,1757848633140,-300.0,0.00021404,20]
[385436666,1757848633165,-300.0,0.00021404,20]
[385436667,1757848633212,-300.0,0.00021404,20]
[385436668,1757848633262,-300.0,0.00021404,20]
[385436669,1757848633289,-600.0,0.00021404,20]
[385436670,1757848633312,-4132.25355674,0.00021807,2]
[385436671,1757848633335,-403.56,0.00021807,10]
[385436672,1757848633357,-172.53881863,0.00021816,2]
[385436673,1757848633381,-209.68734521,0.00021816,2]
[385436674,1757848633406,-500.0,0.00021816,2]
[385436675,1757848633430,-500.0,0.00021816,2]
[385436676,1757848633453,-500.0,0.00021816,2]
[385436677,1757848633475,-500.0,0.00021816,2]
[385436678,1757848633498,-592.49939832,0.00021816,2]
[385436679,1757848633522,-500.0,0.00021816,2]
[385436680,1757848633545,-500.0,0.00021816,2]
[385436681,1757848633568,-500.0,0.00021816,2]
[385436682,1757848633591,-500.0,0.00021816,2]
[385436683,1757848654317,-280391.79493882,0.00021817,2]
[385436689,1757849026881,-2446.48357619,0.000199,2]
[385436690,1757849026907,-2446.48357617,0.00021149,2]
[385436691,1757849026929,-160.0,0.00021803,2]
[385436692,1757849026953,-165.11752399,0.00021816,2]
[385436693,1757849026976,-500.0,0.00021816,2]
[385436694,1757849027000,-300.0,0.00021816,2]
[385436695,1757849027024,-48947.73176384,0.00021817,2]
[385436696,1757849027046,-493.81789162,0.00021817,2]
[385436697,1757849027072,-2754.83570448,0.00021817,2]
[385436698,1757849027094,-493.81789159,0.00021886,2]
[385436699,1757849027117,-508.76,0.00021907,3]
[385436700,1757849027142,-254.38,0.00021907,3]
[385436701,1757849027164,-763.14,0.00021907,3]
[385436702,1757849027186,-336.3,0.00021907,10]
[385436703,1757849027209,-500.0,0.00021915,2]
[385436704,1757849027232,-500.0,0.00021915,2]
[385436705,1757849027257,-500.0,0.00021915,2]
[385436706,1757849027280,-214.74957883,0.00021915,2]
[385436707,1757849027302,-500.0,0.00021915,2]
[385436708,1757849027324,-500.0,0.00021915,2]
[385436709,1757849027347,-500.0,0.00021915,2]
[385436710,1757849027369,-1094.85,0.00021916,2]
[385436711,1757849027392,-1094.85,0.00021916,2]
[385436712,1757849027414,-1094.85,0.00021916,2]
[385436713,1757849027436,-1094.85,0.00021916,2]
[385436714,1757849027459,-1094.85,0.00021916,2]
[385436715,1757849027481,-1094.85,0.00021916,2]
[385436716,1757849027504,-1094.85,0.00021916,2]
[385436717,1757849027526,-1094.85,0.00021916,2]
[385436718,1757849027550,-1094.85,0.00021916,2]
[385436719,1757849027572,-1094.94668918,0.00021916,2]
[385436720,1757849027594,-1000.0,0.00021916,2]
[385436721,1757849027617,-859.26,0.00021916,2]
[385436722,1757849027639,-199.916,0.00021916,2]
[385436723,1757849027662,-500.0,0.00021917,2]
[385436724,1757849027684,-480.0,0.00021917,2]
[385436725,1757849027706,-480.0,0.00021917,2]
[385436726,1757849027729,-480.0,0.00021917,2]
[385436727,1757849027753,-602.3775,0.00021917,2]
[385436728,1757849027775,-480.0,0.00021917,2]
[385436729,1757849027800,-480.0,0.00021917,2]
[385436730,1757849027825,-500.0,0.00021917,2]
[385436731,1757849027848,-480.0,0.00021917,2]
[385436732,1757849027870,-480.0,0.00021917,2]
[385436733,1757849027893,-480.0,0.00021917,2]
[385436734,1757849027915,-480.0,0.00021917,2]
[385436735,1757849027937,-480.0,0.00021917,2]
[385436736,1757849028169,-480.0,0.00021917,2]
[385436737,1757849028192,-480.0,0.00021917,2]
[385436738,1757849028215,-480.0,0.00021917,2]
[385436739,1757849028238,-481.47079174,0.00021917,2]
[385436740,1757849028260,-480.0,0.00021917,2]
[385436741,1757849028282,-480.0,0.00021917,2]
[385436742,1757849028305,-480.0,0.00021917,2]
[385436743,1757849028327,-480.0,0.00021917,2]
[385436744,1757849028350,-487.57067147,0.00021917,2]
[385436745,1757849028372,-480.0,0.00021917,2]
[385436746,1757849028394,-480.0,0.00021917,2]
[385436747,1757849028418,-480.0,0.00021917,2]
[385436748,1757849028444,-480.0,0.00021917,2]
[385436749,1757849028466,-480.0,0.00021917,2]
[385436750,1757849028490,-480.0,0.00021917,2]
[385436751,1757849028513,-480.0,0.00021917,2]
[385436752,1757849028537,-496.49749978,0.00021917,2]
[385436753,1757849028560,-480.0,0.00021917,2]
[385436754,1757849028583,-480.0,0.00021917,2]
[385436755,1757849028605,-480.0,0.00021917,2]
[385436756,1757849028628,-480.0,0.00021917,2]
[385436757,1757849028651,-306.38383361,0.00021917,2]
[385436758,1757849028674,-480.0,0.00021917,2]
[385436759,1757849028697,-480.0,0.00021917,2]
[385436760,1757849028720,-480.0,0.00021917,2]
[385436761,1757849028744,-481.79356785,0.00021917,2]
[385436762,1757849028767,-480.0,0.00021917,2]
[385436763,1757849028789,-480.0,0.00021917,2]
[385436764,1757849028813,-480.0,0.00021917,2]
[385436765,1757849028835,-480.0,0.00021917,2]
[385436766,1757849028858,-480.0,0.00021917,2]
[385436767,1757849028882,-480.0,0.00021917,2]
[385436768,1757849028905,-480.0,0.00021917,2]
[385436769,1757849028929,-358.75043891,0.00021917,2]
[385436770,1757849028952,-480.0,0.00021917,2]
[385436771,1757849028975,-541.74,0.00021917,2]
[385436772,1757849028999,-658.62,0.00021917,2]
[385436773,1757849029024,-1003.11,0.00021917,2]
[385436774,1757849029050,-480.0,0.00021917,2]
[385436775,1757849029078,-480.0,0.00021917,2]
[385436776,1757849029102,-480.0,0.00021917,2]
[385436777,1757849029128,-480.0,0.00021917,2]
[385436778,1757849029151,-1232.85,0.00021917,2]
[385436779,1757849029174,-480.0,0.00021917,2]
[385436780,1757849029197,-480.0,0.00021917,2]
[385436781,1757849029344,-1360.18,0.00021917,2]
[385436782,1757849029367,-1311.75,0.00021917,2]
[385436783,1757849029390,-480.0,0.00021917,2]
[385436784,1757849029412,-561.78,0.00021917,2]
[385436785,1757849029434,-897.37,0.00021917,2]
[385436786,1757849029457,-480.0,0.00021917,2]
[385436787,1757849029480,-480.0,0.00021917,2]
[385436788,1757849029505,-480.0,0.00021917,2]
[385436789,1757849029528,-480.0,0.00021917,2]
[385436790,1757849029550,-480.0,0.00021917,2]
[385436791,1757849029572,-480.0,0.00021917,2]
[385436792,1757849029594,-480.0,0.00021917,2]
[385436793,1757849029617,-480.0,0.00021917,2]
[385436794,1757849029639,-639.63,0.00021917,2]
[385436795,1757849029661,-480.0,0.00021917,2]
[385436796,1757849029685,-480.0,0.00021917,2]
[385436797,1757849029707,-480.0,0.00021917,2]
[385436798,1757849029729,-548.36,0.00021917,2]
[385436799,1757849029751,-480.0,0.00021917,2]
[385436800,1757849029773,-557.13594245,0.00021917,2]
[385436801,1757849029795,-508.59,0.00021917,2]
[385436802,1757849029818,-1267.36,0.00021917,2]
[385436803,1757849029840,-480.0,0.00021917,2]
[385436804,1757849029861,-480.0,0.00021917,2]
[385436805,1757849029884,-151.12,0.00021917,2]
[385436806,1757849029906,-480.0,0.00021917,2]
[385436807,1757849029929,-480.0,0.00021917,2]
[385436808,1757849029952,-857.43,0.00021917,2]
[385436809,1757849029976,-480.0,0.00021917,2]
[385436810,1757849029998,-480.0,0.00021917,2]
[385436811,1757849030020,-571.62686111,0.00021917,2]
[385436812,1757849030045,-480.0,0.00021917,2]
[385436813,1757849030070,-480.0,0.00021917,2]
[385436814,1757849030093,-447.26783727,0.00021917,2]
[385436815,1757849030116,-810.95,0.00021917,2]
[385436816,1757849030138,-481.95685399,0.00021917,2]
[385436817,1757849030161,-449.38583312,0.00021917,2]
[385436818,1757849030184,-480.0,0.00021917,2]
[385436819,1757849030206,-482.54905568,0.00021917,2]
[385436820,1757849030228,-480.0,0.00021917,2]
[385436821,1757849030252,-855.87,0.00021917,2]
[385436822,1757849030277,-485.28201622,0.00021917,2]
[385436823,1757849030301,-480.0,0.00021917,2]
[385436824,1757849030323,-480.0,0.00021917,2]
[385436825,1757849030345,-480.0,0.00021917,2]
[385436826,1757849030368,-727.88,0.00021917,2]
[385436827,1757849030391,-481.20841161,0.00021917,2]
[385436828,1757849030413,-480.0,0.00021917,2]
[385436829,1757849030437,-480.0,0.00021917,2]
[385436830,1757849030462,-480.0,0.00021917,2]
[385436831,1757849030484,-621.3,0.00021917,2]
[385436832,1757849030507,-480.0,0.00021917,2]
[385436833,1757849030530,-480.0,0.00021917,2]
[385436834,1757849030553,-480.0,0.00021917,2]
[385436835,1757849030577,-739.06,0.00021917,2]
[385436836,1757849030600,-480.0,0.00021917,2]
[385436837,1757849030622,-480.78474976,0.00021917,2]
[385436838,1757849030645,-480.0,0.00021917,2]
[385436839,1757849030668,-480.0,0.00021917,2]
[385436840,1757849030690,-476.70318431,0.00021917,2]
[385436841,1757849030712,-480.0,0.00021917,2]
[385436842,1757849030734,-480.0,0.00021917,2]
[385436843,1757849030757,-480.0,0.00021917,2]
[385436844,1757849030779,-480.0,0.00021917,2]
[385436845,1757849030802,-986.29,0.00021917,2]
[385436846,1757849030824,-480.0,0.00021917,2]
[385436847,1757849030847,-480.0,0.00021917,2]
[385436848,1757849030869,-480.0,0.00021917,2]
[385436849,1757849030892,-480.0,0.00021917,2]
[385436850,1757849030913,-480.0,0.00021917,2]
[385436851,1757849030936,-718.03,0.00021917,2]
[385436852,1757849030958,-482.14013962,0.00021917,2]
[385436853,1757849030980,-480.0,0.00021917,2]
[385436854,1757849031003,-480.0,0.00021917,2]
[385436855,1757849031025,-480.0,0.00021917,2]
[385436856,1757849031054,-1223.45,0.00021917,2]
[385436857,1757849031121,-480.0,0.00021917,2]
[385436858,1757849031148,-480.0,0.00021917,2]
[385436859,1757849031171,-481.64490976,0.00021917,2]
[385436860,1757849031193,-482.08553901,0.00021917,2]
[385436861,1757849031216,-480.0,0.00021917,2]
[385436862,1757849031237,-480.0,0.00021917,2]
[385436863,1757849031260,-480.0,0.00021917,2]
[385436864,1757849031282,-480.0,0.00021917,2]
[385436865,1757849031304,-480.0,0.00021917,2]
[385436866,1757849031326,-480.0,0.00021917,2]
[385436867,1757849031348,-480.0,0.00021917,2]
[385436868,1757849031371,-480.0,0.00021917,2]
[385436869,1757849031394,-480.0,0.00021917,2]
[385436870,1757849031415,-480.0,0.00021917,2]
[385436871,1757849031438,-480.0,0.00021917,2]
[385436872,1757849031460,-480.0,0.00021917,2]
[385436873,1757849031482,-480.0,0.00021917,2]
[385436874,1757849031505,-480.0,0.00021917,2]
[385436875,1757849031527,-480.0,0.00021917,2]
[385436876,1757849031550,-480.0,0.00021917,2]
[385436877,1757849031698,-480.0,0.00021917,2]
[385436878,1757849031722,-618.87,0.00021917,2]
[385436879,1757849031745,-480.0,0.00021917,2]
[385436880,1757849031768,-480.0,0.00021917,2]
[385436881,1757849031791,-480.0,0.00021917,2]
[385436882,1757849031816,-808.82,0.00021917,2]
[385436883,1757849031839,-480.0,0.00021917,2]
[385436884,1757849031862,-480.25086954,0.00021917,2]
[385436885,1757849031884,-481.50609926,0.00021917,2]
[385436886,1757849031908,-835.55,0.00021917,2]
[385436887,1757849031929,-480.0,0.00021917,2]
[385436888,1757849031952,-929.52,0.00021917,2]
[385436889,1757849031974,-480.0,0.00021917,2]
[385436890,1757849031996,-589.15,0.00021917,2]
[385436891,1757849032018,-480.0,0.00021917,2]
[385436892,1757849032040,-480.0,0.00021917,2]
[385436893,1757849032064,-480.29324435,0.00021917,2]
[385436894,1757849032086,-900.7,0.00021917,2]
[385436895,1757849032108,-480.0,0.00021917,2]
[385436896,1757849032130,-480.0,0.00021917,2]
[385436897,1757849032153,-480.0,0.00021917,2]
[385436898,1757849032176,-480.0,0.00021917,2]
[385436899,1757849032198,-480.0,0.00021917,2]
[385436900,1757849032221,-480.0,0.00021917,2]
[385436901,1757849032243,-480.0,0.00021917,2]
[385436902,1757849032266,-1600.19,0.00021917,2]
[385436903,1757849032288,-480.0,0.00021917,2]
[385436904,1757849032310,-480.0,0.00021917,2]
[385436905,1757849032333,-480.0,0.00021917,2]
[385436906,1757849032356,-486.14540909,0.00021917,2]
[385436907,1757849032380,-1169.27,0.00021917,2]
[385436908,1757849032403,-480.0,0.00021917,2]
[385436909,1757849032426,-480.0,0.00021917,2]
[385436910,1757849032449,-480.0,0.00021917,2]
[385436911,1757849032471,-480.0,0.00021917,2]
[385436912,1757849032494,-481.49096069,0.00021917,2]
[385436913,1757849032517,-480.0,0.00021917,2]
[385436914,1757849032540,-822.28,0.00021917,2]
[385436915,1757849032563,-480.0,0.00021917,2]
[385436916,1757849032586,-480.0,0.00021917,2]
[385436917,1757849032609,-480.0,0.00021917,2]
[385436918,1757849032632,-480.0,0.00021917,2]
[385436919,1757849032655,-480.0,0.00021917,2]
[385436920,1757849032678,-481.71316032,0.00021917,2]
[385436921,1757849032701,-480.0,0.00021917,2]
[385436922,1757849032723,-480.0,0.00021917,2]
[385436923,1757849032747,-480.0,0.00021917,2]
[385436924,1757849032770,-480.0,0.00021917,2]
[385436925,1757849032793,-480.0,0.00021917,2]
[385436926,1757849032816,-430.42,0.00021917,2]
[385436927,1757849032840,-1306.0,0.00021917,2]
[385436928,1757849032862,-500.0,0.00021917,2]
[385436929,1757849032886,-480.0,0.00021917,2]
[385436930,1757849032908,-707.67,0.00021917,2]
[385436931,1757849032932,-678.54,0.00021917,2]
[385436932,1757849032955,-978.12,0.00021917,2]
[385436933,1757849032979,-480.0,0.00021917,2]
[385436934,1757849033003,-31187.39,0.00021917,2]
[385436935,1757849033026,-539.46,0.00021917,2]
[385436936,1757849033050,-483.16271752,0.00021917,2]
[385436937,1757849033076,-480.0,0.00021917,2]
[385436938,1757849033100,-480.0,0.00021917,2]
[385436939,1757849033125,-480.0,0.00021917,2]
[385436940,1757849033150,-480.0,0.00021917,2]
[385436941,1757849033174,-480.0,0.00021917,2]
[385436942,1757849033197,-480.0,0.00021917,2]
[385436943,1757849033221,-2432.68,0.00021917,2]
[385436944,1757849033243,-480.0,0.00021917,2]
[385436945,1757849033267,-7732.59,0.00021917,2]
[385436946,1757849033289,-480.0,0.00021917,2]
[385436947,1757849033313,-1380.33,0.00021917,2]
[385436948,1757849033336,-1508.32,0.00021917,2]
[385436949,1757849033360,-480.0,0.00021917,2]
[385436950,1757849033382,-480.0,0.00021917,2]
[385436951,1757849033405,-392.75427858,0.00021917,2]
[385436952,1757849033428,-497.52071276,0.00021917,2]
[385436953,1757849033451,-480.0,0.00021917,2]
[385436954,1757849033475,-971.0,0.00021917,2]
[385436955,1757849033500,-625.99713881,0.00021917,2]
[385436956,1757849033523,-348.22884602,0.00021917,2]
[385436957,1757849033546,-480.0,0.00021917,2]
[385436958,1757849033571,-2014.86,0.00021917,2]
[385436959,1757849033594,-480.0,0.00021917,2]
[385436960,1757849033616,-550.48,0.00021917,2]
[385436961,1757849033640,-3592.64,0.00021917,2]
[385436962,1757849033664,-896.42,0.00021917,2]
[385436963,1757849033687,-480.0,0.00021917,2]
[385436964,1757849033710,-1005.3,0.00021917,2]
[385436965,1757849033732,-916.13,0.00021917,2]
[385436966,1757849033755,-480.0,0.00021917,2]
[385436967,1757849033779,-480.0,0.00021917,2]
[385436968,1757849033802,-480.0,0.00021917,2]
[385436969,1757849033827,-480.0,0.00021917,2]
[385436970,1757849033853,-483.69540513,0.00021917,2]
[385436971,1757849033879,-481.08361683,0.00021917,2]
[385436972,1757849033902,-1618.02,0.00021917,2]
[385436973,1757849034052,-480.0,0.00021917,2]
[385436974,1757849034077,-480.0,0.00021917,2]
[385436975,1757849034102,-480.0,0.00021917,2]
[385436976,1757849034125,-857.5,0.00021917,2]
[385436977,1757849034148,-2967.21,0.00021917,2]
[385436978,1757849034172,-480.0,0.00021917,2]
[385436979,1757849034196,-1139.56,0.00021917,2]
[385436980,1757849034219,-957.64,0.00021917,2]
[385436981,1757849034242,-480.0,0.00021917,2]
[385436982,1757849034266,-500.0,0.00021917,2]
[385436983,1757849034289,-500.0,0.00021917,2]
[385436984,1757849034312,-500.0,0.00021917,2]
[385436985,1757849034336,-302.01221425,0.00021917,2]
[385436986,1757849034360,-3225.57,0.00021917,2]
[385436987,1757849034384,-480.0,0.00021917,2]
[385436988,1757849034407,-512.73251397,0.00021917,2]
[385436989,1757849034430,-480.0,0.00021917,2]
[385436990,1757849034454,-500.0,0.00021917,2]
[385436991,1757849034478,-220.52901567,0.00021917,2]
[385436992,1757849034503,-1576.77,0.00021917,2]
[385436993,1757849034526,-480.0,0.00021917,2]
[385436994,1757849034548,-1131.09,0.00021917,2]
[385436995,1757849034571,-480.0,0.00021917,2]
[385436996,1757849034594,-481.61529543,0.00021917,2]
[385436997,1757849034617,-772.0,0.00021917,2]
[385436998,1757849034641,-480.0,0.00021917,2]
[385436999,1757849034663,-480.0,0.00021917,2]
[385437000,1757849034686,-480.0,0.00021917,2]
[385437001,1757849034709,-1628.32,0.00021917,2]
[385437002,1757849034733,-480.0,0.00021917,2]
[385437003,1757849034758,-480.0,0.00021917,2]
[385437004,1757849034780,-511.98257675,0.00021917,2]
[385437005,1757849034804,-480.0,0.00021917,2]
[385437006,1757849034826,-857.85,0.00021917,2]
[385437007,1757849034850,-610.9934371,0.00021917,2]
[385437008,1757849034873,-436.61700864,0.00021917,2]
[385437009,1757849034901,-480.0,0.00021917,2]
[385437010,1757849034925,-2512.06,0.00021917,2]
[385437011,1757849034948,-480.0,0.00021917,2]
[385437012,1757849034970,-480.0,0.00021917,2]
[385437013,1757849034995,-4401.24,0.00021917,2]
[385437014,1757849035019,-480.0,0.00021917,2]
[385437015,1757849035042,-480.0,0.00021917,2]
[385437016,1757849035067,-480.0,0.00021917,2]
[385437017,1757849035091,-480.0,0.00021917,2]
[385437018,1757849035117,-480.0,0.00021917,2]
[385437019,1757849035141,-502.07475793,0.00021917,2]
[385437020,1757849035163,-480.0,0.00021917,2]
[385437021,1757849035186,-403.27897225,0.00021917,2]
[385437022,1757849035208,-480.0,0.00021917,2]
[385437023,1757849035230,-256.06591595,0.00021917,2]
[385437032,1757849142076,-2283.38467115,0.000199,2]
[385437033,1757849142106,-2283.38467109,0.00021149,2]
[385437034,1757849142133,-847.27885267,0.00021309,2]
[385437035,1757849142161,-300.0,0.00021815,2]
[385437036,1757849142187,-10000.01,0.00021816,2]
[385437037,1757849142212,-296.29073497,0.00021817,2]
[385437038,1757849142236,-296.29073495,0.00021886,2]
[385437039,1757849142262,-254.38,0.00021907,3]
[385437040,1757849142286,-254.38,0.00021907,3]
[385437041,1757849142312,-500.0,0.00021916,2]
[385437042,1757849142338,-500.0,0.00021916,2]
[385437043,1757849142404,-500.0,0.00021916,2]
[385437044,1757849142454,-500.0,0.00021916,2]
[385437045,1757849142480,-250.32470518,0.00021916,2]
[385437046,1757849142504,-223.93408405,0.00021917,2]
[385437047,1757849142528,-480.0,0.00021917,2]
[385437048,1757849142552,-480.0,0.00021917,2]
[385437049,1757849142575,-480.0,0.00021917,2]
[385437050,1757849142599,-480.0,0.00021917,2]
[385437051,1757849142623,-2851.76,0.00021917,2]
[385437052,1757849142646,-480.0,0.00021917,2]
[385437053,1757849142671,-508.27,0.00021917,2]
[385437054,1757849142694,-480.0,0.00021917,2]
[385437055,1757849142719,-520.06612952,0.00021917,2]
[385437056,1757849142744,-499.4,0.00021917,2]
[385437057,1757849142768,-480.0,0.00021917,2]
[385437058,1757849142793,-480.0,0.00021917,2]
[385437059,1757849142818,-4784.3,0.00021917,2]
[385437060,1757849142842,-480.0,0.00021917,2]
[385437061,1757849142868,-480.0,0.00021917,2]
[385437062,1757849142893,-2360.45,0.00021917,2]
[385437063,1757849142918,-1140.6,0.00021917,2]
[385437064,1757849142942,-480.97665309,0.00021917,2]
[385437065,1757849142966,-480.0,0.00021917,2]
[385437066,1757849142990,-1679.53,0.00021917,2]
[385437067,1757849143014,-480.0,0.00021917,2]
[385437068,1757849143038,-480.0,0.00021917,2]
[385437069,1757849143062,-710.01,0.00021917,2]
[385437070,1757849143086,-480.0,0.00021917,2]
[385437071,1757849143111,-480.0,0.00021917,2]
[385437072,1757849143136,-480.0,0.00021917,2]
[385437073,1757849143161,-1179.79,0.00021917,2]
[385437074,1757849143184,-541.76,0.00021917,2]
[385437075,1757849143208,-486.49815033,0.00021917,2]
[385437076,1757849143231,-480.0,0.00021917,2]
[385437077,1757849143394,-1161.98,0.00021917,2]
[385437078,1757849143419,-1261.34,0.00021917,2]
[385437079,1757849143445,-480.0,0.00021917,2]
[385437080,1757849143474,-257.76573714,0.00021917,2]
[385437081,1757849143498,-903.98,0.00021917,2]
[385437082,1757849143524,-480.0,0.00021917,2]
[385437083,1757849143549,-480.0,0.00021917,2]
[385437084,1757849143574,-480.0,0.00021917,2]
[385437085,1757849143600,-480.0,0.00021917,2]
[385437086,1757849143624,-1146.22,0.00021917,2]
[385437087,1757849143649,-3118.67,0.00021917,2]
[385437088,1757849143675,-2209.77,0.00021917,2]
[385437089,1757849143698,-482.72625272,0.00021917,2]
[385437090,1757849143722,-480.0,0.00021917,2]
[385437091,1757849143747,-678.87,0.00021917,2]
[385437092,1757849143771,-795.28,0.00021917,2]
[385437093,1757849143795,-480.0,0.00021917,2]
[385437094,1757849143820,-365.24023752,0.00021917,2]
[385437095,1757849143844,-480.0,0.00021917,2]
[385437096,1757849143868,-480.0,0.00021917,2]
[385437097,1757849143896,-480.0,0.00021917,2]
[385437098,1757849143922,-3971.15,0.00021917,2]
[385437099,1757849143946,-480.0,0.00021917,2]
[385437100,1757849143969,-480.0,0.00021917,2]
[385437101,1757849143993,-480.0,0.00021917,2]
[385437102,1757849144017,-1051.25,0.00021917,2]
[385437103,1757849144041,-350.64080612,0.00021917,2]
[385437104,1757849144066,-15156.69,0.00021917,2]
[385437105,1757849144091,-232.98035473,0.00021917,2]
[385437106,1757849144117,-480.0,0.00021917,2]
[385437107,1757849144141,-480.0,0.00021917,2]
[385437108,1757849144165,-659.31,0.00021917,2]
[385437109,1757849144189,-1050.32,0.00021917,2]
[385437110,1757849144213,-480.0,0.00021917,2]
[385437111,1757849144238,-1112.33,0.00021917,2]
[385437112,1757849144263,-480.0,0.00021917,2]
[385437113,1757849144288,-2375.16,0.00021917,2]
[385437114,1757849144312,-480.0,0.00021917,2]
[385437115,1757849144336,-480.0,0.00021917,2]
[385437116,1757849144360,-480.58403167,0.00021917,2]
[385437117,1757849144384,-239.49408317,0.00021917,2]
[385437118,1757849144408,-480.0,0.00021917,2]
[385437119,1757849144433,-480.0,0.00021917,2]